bitfinex/quotes_SOLUSD_20241123
["timestamp","ask_amount","ask_price","bid_price","bid_amount"]
[1732334557190,18.88841305,256.83,256.79,2.5]
[1732334557990,18.88841305,256.83,256.77,2.5]
[1732334558198,18.88841305,256.81,256.73,2.5]
[1732334558383,18.88841305,256.79,256.73,2.5]
[1732334558894,23.776884,256.87,256.68,6.4652]
[1732334558895,18.88841305,256.77,256.69,2.5]
[1732334559197,18.88841305,256.79,256.73,2.5]
[1732334559395,23.776884,256.87,256.73,2.5]
[1732334559396,18.88841305,256.81,256.78,2.5]
[1732334559898,31.63898845,256.87,256.68,6.4652]
[1732334559899,6.86210445,256.87,256.85,2.5]
[1732334560073,18.88841305,256.89,256.81,2.5]
[1732334560280,18.88841305,256.89,256.83,2.5]
[1732334560524,7.88382726,257.0,256.79,22.3256]
[1732334560525,18.88841305,256.85,256.79,6.3312]
[1732334560688,18.88841305,256.85,256.72,15.9944]
[1732334560689,18.88841305,256.81,256.72,6.3312]
[1732334560884,18.88841305,256.76,256.7,2.5]
[1732334561085,18.88841305,256.78,256.72,2.5]
[1732334561292,18.88841305,256.8,256.76,2.5]
[1732334561603,18.88841305,256.82,256.79,2.5]
[1732334561893,18.88841305,256.84,256.79,2.5]
[1732334562093,18.88841305,256.82,256.79,2.5]
[1732334562405,18.88841305,256.8,256.75,2.5]
[1732334562587,18.88841305,256.78,256.69,2.5]
[1732334562896,18.88841305,256.76,256.73,2.5]
[1732334563096,18.88841305,256.78,256.73,2.5]
[1732334563477,18.88841305,256.78,256.69,2.5]
[1732334563671,18.88841305,256.76,256.71,2.5]
[1732334563894,18.88841305,256.76,256.73,2.5]
[1732334564092,18.88841305,256.78,256.73,2.5]
[1732334565483,18.88841305,256.76,256.69,2.5]
[1732334565898,18.88841305,256.76,256.73,2.5]
[1732334566196,33.09752093,256.88,256.73,2.5]
[1732334566197,23.776884,256.78,256.73,2.5]
[1732334566577,23.776884,256.78,256.77,2.5]
[1732334566782,23.776884,256.78,256.77,21.38841305]
[1732334567206,26.47192093,256.88,256.77,21.38841305]
[1732334567502,26.47192093,256.88,256.82,2.5]
[1732334567696,18.88841305,256.86,256.79,2.5]
[1732334567904,26.47192093,256.88,256.84,2.5]
[1732334568201,18.88841305,256.88,256.82,2.5]
[1732334568383,18.88841305,256.86,256.83,2.5]
[1732334568707,18.88841305,256.86,256.81,2.5]
[1732334568910,18.88841305,256.82,256.71,2.5]
[1732334569097,18.88841305,256.76,256.73,2.5]
[1732334569410,18.88841305,256.8,256.78,2.5]
[1732334569599,18.88841305,256.84,256.82,2.5]
[1732334569777,18.88841305,256.84,256.8,2.5]
[1732334570092,7.73647195,256.91,256.77,2.5]
[1732334570289,18.88841305,256.82,256.8,2.5]
[1732334570590,18.88841305,256.82,256.77,2.5]
[1732334570798,18.88841305,256.82,256.73,18.88841305]
[1732334570799,18.88841305,256.8,256.73,2.5]
[1732334570999,18.88841305,256.78,256.73,2.5]
[1732334571183,23.776884,256.77,256.73,2.5]
[1732334571384,23.776884,256.77,256.71,2.5]
[1732334571700,18.88841305,256.74,256.69,2.5]
[1732334572481,18.88841305,256.74,256.7,2.5]
[1732334572979,18.88841305,256.74,256.72,2.5]
[1732334573906,18.88841305,256.76,256.72,2.5]
[1732334574084,18.88841305,256.76,256.74,2.5]
[1732334575200,23.776884,256.75,256.7,2.5]
[1732334575408,18.88841305,256.72,256.7,2.5]
[1732334575784,7.65591899,256.88,256.79,2.5]
[1732334576097,18.88841305,256.82,256.81,2.5]
[1732334576798,18.88841305,256.82,256.78,2.5]
[1732334577006,18.88841305,256.8,256.78,2.5]
[1732334578801,18.88841305,256.8,256.76,2.5]
[1732334579001,18.88841305,256.78,256.76,2.5]
[1732334579206,18.88841305,256.78,256.74,2.5]
[1732334579375,18.88841305,256.76,256.74,2.5]
[1732334579993,18.88841305,256.76,256.69,2.5]
[1732334580199,18.88841305,256.72,256.71,2.5]
[1732334580403,18.88841305,256.74,256.73,2.5]
[1732334580792,18.88841305,256.76,256.75,2.5]
[1732334582592,2.0229855,256.84,256.75,2.5]
[1732334582796,11.78715983,256.79,256.78,2.5]
[1732334583479,11.78715983,256.79,256.74,2.5]
[1732334583787,11.78715983,256.77,256.76,2.5]
[1732334583990,11.78715983,256.77,256.74,2.5]
[1732334584202,11.78715983,256.75,256.74,2.5]
[1732334584906,11.79009926,256.79,256.76,2.5]
[1732334585092,11.79009926,256.79,256.78,2.5]
[1732334586007,11.79009926,256.81,256.78,2.5]
[1732334586195,11.79009926,256.81,256.8,2.5]
[1732334586404,11.79009926,256.83,256.8,2.5]
[1732334586712,11.79009926,256.83,256.82,2.5]
[1732334587513,15.3452,256.93,256.75,22.9859]
[1732334587514,19.73149583,256.85,256.84,2.5]
[1732334587689,31.79009926,256.85,256.84,2.5]
[1732334587890,20.0,256.84,256.75,22.9859]
[1732334588806,11.79009926,256.89,256.75,25.4859]
[1732334589904,11.79009926,256.87,256.75,22.9859]
[1732334590203,20.0,256.86,256.75,22.9859]
[1732334590591,11.79009926,256.85,256.75,22.9859]
[1732334590927,11.79009926,256.81,256.75,22.9859]
[1732334591093,20.0,256.8,256.75,22.9859]
[1732334591287,11.79009926,256.9,256.76,2.5]
[1732334591909,11.79009926,256.88,256.76,23.776884]
[1732334592494,20.0,256.87,256.76,23.776884]
[1732334593191,11.79009926,256.8,256.75,22.9859]
[1732334593389,20.0,256.79,256.75,16.6314]
[1732334594112,20.0,256.79,256.69,22.9859]
[1732334594410,14.29009926,256.88,256.69,22.9859]
[1732334594411,20.0,256.75,256.69,22.9859]
[1732334595713,20.0,256.75,256.63,21.8789]
[1732334595912,20.0,256.75,256.64,0.58423281]
[1732334596217,20.0,256.77,256.64,0.58423281]
[1732334596712,11.79009926,256.74,256.64,0.58423281]
[1732334596894,20.0,256.73,256.64,0.58423281]
[1732334597217,20.0,256.73,256.63,21.8789]
[1732334604210,6.05556347,256.8,256.63,22.46318182]
[1732334604412,11.79009926,256.78,256.63,22.46318182]
[1732334604825,11.79009926,256.78,256.64,2.5]
[1732334605124,11.79009926,256.78,256.65,3.08417381]
[1732334605322,20.0,256.77,256.65,0.58417381]
[1732334605546,6.05556347,256.81,256.65,0.58417381]
[1732334605547,11.79009926,256.76,256.65,0.58417381]
[1732334605727,20.0,256.75,256.65,0.58417381]
[1732334605913,6.05556347,256.81,256.65,0.58417381]
[1732334605914,6.05556347,256.81,256.7,2.5]
[1732334606222,17.84566273,256.85,256.71,21.6659]
[1732334606521,11.79009926,256.85,256.72,0.58398828]
[1732334606901,13.83478623,256.89,256.72,0.58398828]
[1732334607100,11.79009926,256.85,256.73,2.5]
[1732334607296,11.79009926,256.89,256.76,2.5]
[1732334607541,11.79009926,256.89,256.77,0.58387021]
[1732334609027,20.0,256.88,256.77,0.58387021]
[1732334609337,20.0,256.88,256.78,23.776884]
[1732334609837,20.0,256.86,256.76,2.5]
[1732334610136,20.0,256.86,256.76,0.58394461]
[1732334610432,20.0,256.86,256.76,3.08394461]
[1732334610815,20.0,256.86,256.76,0.58394461]
[1732334611034,20.0,256.88,256.77,23.776884]
[1732334611335,20.0,256.86,256.77,23.776884]
[1732334611736,20.0,256.86,256.76,23.776884]
[1732334611930,20.0,256.86,256.75,0.58390642]
[1732334612129,20.0,256.88,256.76,26.276884]
[1732334612310,20.0,256.88,256.76,23.776884]
[1732334614341,20.0,256.88,256.76,26.276884]
[1732334617827,20.0,256.84,256.71,21.6659]
[1732334618028,20.0,256.86,256.73,2.5]
[1732334618240,20.0,256.86,256.73,3.083951]
[1732334619326,20.0,256.86,256.74,23.776884]
[1732334620241,20.0,256.86,256.73,26.276884]
[1732334620447,20.0,256.86,256.75,23.776884]
[1732334621129,20.0,256.86,256.77,23.776884]
[1732334622046,11.79009926,256.89,256.77,23.776884]
[1732334622229,20.0,256.88,256.77,23.776884]
[1732334623942,20.0,256.86,256.77,23.776884]
[1732334624948,31.79009926,256.89,256.77,24.36081032]
[1732334626021,31.79009926,256.89,256.77,23.776884]
[1732334626551,31.79009926,256.89,256.74,2.5]
[1732334627020,31.79009926,256.89,256.75,23.776884]
[1732334627625,31.79009926,256.89,256.76,2.5]
[1732334628257,11.79009926,256.87,256.75,23.776884]
[1732334628753,7.5365999,256.88,256.75,23.776884]
[1732334628950,20.0,256.87,256.75,23.776884]
[1732334632930,27.5365999,256.9,256.75,23.776884]
[1732334634647,20.0,256.87,256.75,23.776884]
[1732334635535,20.0,256.87,256.76,0.58391775]
[1732334635735,27.5365999,256.9,256.76,0.58391775]
[1732334635940,7.5365999,256.91,256.76,3.08391775]
[1732334636247,20.0,256.9,256.77,23.776884]
[1732334636444,6.05556347,257.04,256.84,2.5]
[1732334636759,7.5365999,256.99,256.85,0.58366465]
[1732334637340,8.30635882,257.03,256.86,23.776884]
[1732334637534,7.5365999,256.96,256.87,16.0046]
[1732334637729,8.30635882,257.03,256.87,16.0046]
[1732334637730,7.5365999,256.94,256.87,16.0046]
[1732334638149,30.1463996,257.01,256.87,16.0046]
[1732334638348,7.5365999,256.95,256.87,16.0046]
[1732334638845,20.0,256.94,256.87,16.0046]
[1732334639253,20.0,257.0,256.88,23.776884]
[1732334639465,20.0,256.95,256.88,23.776884]
[1732334646657,0.4,257.03,256.88,26.276884]
[1732334646864,7.5365999,257.0,256.89,0.58373033]
[1732334648142,20.0,256.99,256.89,0.58373033]
[1732334648542,20.0,256.99,256.9,23.776884]
[1732334648966,0.4,257.03,256.92,26.276884]
[1732334649138,0.4,257.03,256.94,23.776884]
[1732334649759,7.9365999,257.03,256.94,23.776884]
[1732334650459,0.4,257.03,256.95,0.58353958]
[1732334651042,0.4,257.03,256.96,23.776884]
[1732334651361,0.4,257.03,256.97,22.49578284]
[1732334652342,0.4,257.03,256.97,21.9123]
[1732334653067,0.4,257.03,256.98,0.58341447]
[1732334653763,0.4,257.03,256.99,23.776884]
[1732334655746,0.4,257.03,256.98,2.5]
[1732334656170,0.4,257.03,256.98,23.776884]
[1732334656344,0.4,257.03,256.97,21.9123]
[1732334656753,7.52480961,257.01,256.91,23.2306]
[1732334657251,20.0,257.02,256.91,23.2306]
[1732334658268,20.0,257.0,256.91,23.2306]
[1732334659568,20.0,257.0,256.91,16.5935]
[1732334659569,7.52480961,256.99,256.91,16.5935]
[1732334659870,20.0,257.0,256.91,16.5935]
[1732334661765,7.52480961,256.99,256.91,16.5935]
[1732334661978,20.0,256.98,256.91,16.5935]
[1732334662151,20.0,257.0,256.91,16.5935]
[1732334662352,27.52480961,257.0,256.91,16.5935]
[1732334662544,0.4,257.03,256.92,23.776884]
[1732334662748,20.4,257.03,256.92,23.776884]
[1732334666577,0.4,257.03,256.92,23.776884]
[1732334670975,0.4,257.03,256.94,23.776884]
[1732334676884,0.4,257.03,256.96,23.776884]
[1732334678678,0.4,257.03,256.97,0.58343977]
[1732334679982,0.4,257.03,256.98,23.776884]
[1732334680283,0.4,257.03,256.93,6.6371]
[1732334680795,20.4,257.03,256.93,6.6371]
[1732334681170,0.4,257.03,256.93,6.6371]
[1732334681687,0.4,257.03,256.93,7.2206783]
[1732334682469,0.4,257.03,256.94,23.776884]
[1732334685992,7.52480961,257.01,256.93,6.6371]
[1732334686178,7.52480961,256.98,256.91,16.5935]
[1732334686494,20.0,256.97,256.91,16.5935]
[1732334687480,20.0,256.97,256.87,6.98789966]
[1732334687788,0.4,257.03,256.81,6.4042]
[1732334687789,20.0,256.9,256.81,6.4042]
[1732334687976,27.52480961,256.9,256.81,6.4042]
[1732334688491,27.52480961,256.9,256.78,15.9023]
[1732334689166,20.0,256.95,256.78,15.9023]
[1732334689668,20.0,256.91,256.79,23.776884]
[1732334690986,15.0001,256.96,256.79,23.776884]
[1732334690987,20.0,256.89,256.79,23.776884]
[1732334691692,20.0,256.95,256.79,24.36076849]
[1732334691892,22.52490961,256.96,256.79,24.36076849]
[1732334691893,7.52480961,256.96,256.8,2.5]
[1732334692189,7.52480961,256.98,256.81,0.58374335]
[1732334692887,0.4,257.03,256.9,2.5]
[1732334693073,0.4,257.03,256.91,0.58350965]
[1732334693684,0.4,257.03,256.86,16.48592436]
[1732334693685,7.52480961,257.02,256.86,16.48592436]
[1732334694086,20.0,257.01,256.87,23.776884]
[1732334694288,20.0,256.99,256.87,23.776884]
[1732334696295,7.52480961,256.98,256.87,23.776884]
[1732334696499,20.0,256.97,256.87,23.776884]
[1732334697400,7.52480961,256.94,256.86,15.9023]
[1732334697706,20.0,256.93,256.86,15.9023]
[1732334698381,7.52480961,256.92,256.8,17.06061694]
[1732334698587,20.0,256.91,256.8,17.06061694]
[1732334699089,20.0,257.01,256.8,17.06061694]
[1732334699504,20.0,257.01,256.81,2.5]
[1732334699691,7.52480961,256.99,256.82,0.58370902]
[1732334699991,20.0,256.98,256.83,23.776884]
[1732334700201,7.52480961,256.97,256.84,0.58374112]
[1732334700695,20.0,256.96,256.84,0.58374112]
[1732334700897,6.05556347,257.08,256.86,2.5]
[1732334701105,7.92480961,257.03,256.88,23.776884]
[1732334701279,7.52480961,257.01,256.88,23.776884]
[1732334701485,7.52480961,256.99,256.86,23.776884]
[1732334701683,7.52480961,256.97,256.85,23.058]
[1732334702095,7.52480961,256.95,256.85,23.058]
[1732334702298,7.52480961,256.91,256.85,23.058]
[1732334702492,20.0,256.9,256.85,16.4769]
[1732334702997,20.0,256.9,256.79,23.058]
[1732334703177,7.52480961,256.89,256.79,23.058]
[1732334703383,7.52480961,256.87,256.79,23.058]
[1732334703583,20.0,256.86,256.79,16.4769]
[1732334703800,20.0,256.86,256.73,6.5811]
[1732334703801,20.0,256.86,256.73,23.058]
[1732334704105,20.0,256.84,256.73,23.058]
[1732334704703,20.0,256.89,256.74,0.58406241]
[1732334706104,0.4,257.03,256.95,136.8]
[1732334706288,0.4,257.03,256.93,16.4769]
[1732334706600,0.4,257.03,256.93,17.06046399]
[1732334706984,0.4,257.03,256.94,23.776884]
[1732334707402,0.4,257.03,256.95,0.58350824]
[1732334708201,0.4,257.03,256.94,23.776884]
[1732334710208,20.0,257.02,256.94,23.776884]
[1732334710392,20.0,257.0,256.85,23.058]
[1732334710715,20.0,257.0,256.86,2.5]
[1732334710895,20.0,257.0,256.87,0.58366476]
[1732334711103,11.77869857,256.99,256.85,23.058]
[1732334711401,11.77869857,256.99,256.86,0.58371547]
[1732334711596,0.4,257.03,256.86,0.58371547]
[1732334711597,20.0,257.0,256.86,0.58371547]
[1732334712289,0.4,257.03,256.87,5.0]
[1732334712595,0.4,257.03,256.9,2.5]
[1732334712793,0.4,257.03,256.91,0.58352921]
[1732334713001,0.4,257.03,256.92,23.776884]
[1732334713204,0.4,257.03,256.93,0.58353285]
[1732334714989,0.4,257.03,256.95,6.1389]
[1732334715312,0.4,257.03,256.96,0.58346731]
[1732334716194,0.4,257.03,256.97,23.776884]
[1732334716611,0.4,257.03,256.98,0.58343056]
[1732334717607,0.4,257.03,256.99,23.776884]
[1732334718490,0.4,257.03,257.0,0.58339096]
[1732334718811,6.1892,257.23,257.0,0.58339096]
[1732334718812,6.05556347,257.26,257.09,136.4]
[1732334719014,11.77869857,257.22,257.1,24.36007104]
[1732334719228,15.7275,257.29,257.11,16.0049]
[1732334719514,11.77869857,257.22,257.12,23.776884]
[1732334719690,11.77869857,257.24,257.12,23.776884]
[1732334719893,11.77869857,257.24,257.13,0.58310425]
[1732334720413,7.8274789,257.32,257.14,6.3477]
[1732334720707,11.77869857,257.26,257.14,6.3477]
[1732334720910,11.77869857,257.24,257.14,6.3477]
[1732334721410,11.77869857,257.22,257.14,6.3477]
[1732334721595,11.77869857,257.2,257.12,23.776884]
[1732334722219,11.77869857,257.18,257.08,6.3477]
[1732334722419,11.77869857,257.18,257.08,6.93094114]
[1732334722803,11.77869857,257.2,257.08,6.93094114]
[1732334723622,11.77869857,257.18,257.09,23.776884]
[1732334725417,11.77869857,257.2,257.09,23.776884]
[1732334725727,11.77869857,257.2,257.1,0.5831486]
[1732334726031,11.77869857,257.2,257.11,23.776884]
[1732334726319,11.77869857,257.2,257.09,23.776884]
[1732334728310,11.77869857,257.17,257.09,23.776884]
[1732334729221,11.77869857,257.17,257.08,6.3477]
[1732334729400,11.77869857,257.17,257.08,6.9309469]
[1732334729601,11.77869857,257.2,257.08,6.9309469]
[1732334730314,11.77869857,257.18,257.08,6.9309469]
[1732334730519,11.77869857,257.18,257.09,23.776884]
[1732334732523,11.77869857,257.2,257.1,0.58323744]
[1732334732707,11.77869857,257.22,257.1,0.58323744]
[1732334734013,11.77869857,257.2,257.1,0.58323744]
[1732334734806,11.77869857,257.2,257.09,0.58317839]
[1732334735235,11.77869857,257.22,257.09,0.58317839]
[1732334735530,11.77869857,257.2,257.08,6.3477]
[1732334735715,20.0,257.28,257.09,0.58319866]
[1732334736029,11.77869857,257.22,257.1,23.776884]
[1732334736331,11.77869857,257.22,257.08,6.3477]
[1732334736332,11.77869857,257.22,257.12,23.776884]
[1732334737809,11.77869857,257.2,257.1,23.776884]
[1732334738023,11.77869857,257.16,257.09,23.776884]
[1732334738407,11.77869857,257.16,257.08,6.3477]
[1732334738603,11.77869857,257.14,257.08,6.3477]
[1732334739223,11.77869857,257.14,257.05,16.0049]
[1732334739438,20.0,257.26,257.05,16.0049]
[1732334739729,11.77869857,257.15,257.05,16.58820701]
[1732334739909,11.77869857,257.17,257.05,16.58820701]
[1732334740105,20.0,257.28,257.06,23.776884]
[1732334740306,11.77869857,257.2,257.08,23.776884]
[1732334741227,11.77869857,257.2,257.09,0.58321728]
[1732334742603,11.77869857,257.18,257.1,23.776884]
[1732334744436,11.77869857,257.18,257.06,0.58319825]
[1732334746535,11.77869857,257.18,257.07,23.776884]
[1732334746724,11.77869857,257.18,257.08,0.58321597]
[1732334747120,11.77869857,257.16,257.07,23.776884]
[1732334747637,11.77869857,257.16,257.05,16.0049]
[1732334748026,11.77869857,257.14,257.06,23.776884]
[1732334748842,11.77869857,257.14,257.05,16.0049]
[1732334749719,11.77869857,257.27,257.05,16.0049]
[1732334749720,11.77869857,257.16,257.05,16.0049]
[1732334750336,11.77869857,257.14,257.06,23.776884]
[1732334750917,11.77869857,257.1,257.02,6.2617]
[1732334751445,11.77869857,257.1,256.99,16.84734863]
[1732334751735,11.77869857,257.06,256.99,16.2639]
[1732334751935,11.77869857,257.05,256.96,6.2617]
[1732334752138,11.77869857,257.03,256.96,6.2617]
[1732334752528,11.77869857,257.03,256.93,16.2639]
[1732334752946,11.77869857,257.03,256.93,16.84750651]
[1732334753326,11.77869857,257.05,256.93,16.84750651]
[1732334753525,11.77869857,257.09,256.93,16.84750651]
[1732334753744,11.77869857,257.09,256.94,23.776884]
[1732334753919,11.77869857,257.09,256.93,16.84750651]
[1732334753920,11.77869857,257.09,256.96,23.776884]
[1732334754127,11.77869857,257.09,256.97,0.58348457]
[1732334755141,11.77869857,257.09,256.96,23.776884]
[1732334755676,20.0,257.17,256.97,23.776884]
[1732334755948,11.77869857,257.17,256.98,26.78817991]
[1732334757525,11.77869857,257.15,257.0,20.0]
[1732334757733,11.77869857,257.11,257.01,0.58335864]
[1732334757930,15.5177,257.18,256.99,23.776884]
[1732334757931,11.77869857,257.09,256.99,23.776884]
[1732334758148,11.77869857,257.09,256.98,6.2048]
[1732334758322,11.77869857,257.07,256.98,6.2048]
[1732334759145,11.77869857,257.09,256.98,6.2048]
[1732334759546,11.77869857,257.09,256.99,24.36036632]
[1732334759755,11.77869857,257.13,256.99,24.36036632]
[1732334760048,11.77869857,257.17,257.01,23.776884]
[1732334760254,11.77869857,257.17,257.03,23.776884]
[1732334760665,11.77869857,257.13,257.03,23.776884]
[1732334761033,11.77869857,257.15,257.03,23.776884]
[1732334761449,11.77869857,257.17,257.03,23.776884]
[1732334761654,11.77869857,257.17,257.04,0.58330954]
[1732334762262,11.77869857,257.19,257.04,0.58330954]
[1732334762556,11.77869857,257.19,257.04,20.58330954]
[1732334763543,11.77869857,257.19,257.05,23.776884]
[1732334763759,11.77869857,257.19,257.07,23.776884]
[1732334764560,11.77869857,257.19,257.09,23.776884]
[1732334765256,11.77869857,257.15,257.01,20.0]
[1732334765559,11.77869857,257.17,257.01,20.5832919]
[1732334765763,11.77869857,257.17,257.01,0.5832919]
[1732334766065,11.77869857,257.15,257.01,0.5832919]
[1732334766643,11.77869857,257.09,257.0,15.7494]
[1732334766937,11.77869857,257.14,257.01,0.58346244]
[1732334767554,23.9622,257.26,257.01,0.58346244]
[1732334767555,11.77869857,257.16,257.01,0.58346244]
[1732334767943,11.77869857,257.14,257.02,23.776884]
[1732334769151,11.77869857,257.12,257.02,23.776884]
[1732334769458,11.77869857,257.12,257.0,15.7494]
[1732334769638,11.77869857,257.1,257.0,15.7494]
[1732334770658,11.77869857,257.1,257.01,23.776884]
[1732334771042,20.0,257.12,257.02,0.58344272]
[1732334771257,20.0,257.12,257.03,23.776884]
[1732334771659,11.77869857,257.15,257.03,23.776884]
[1732334771959,20.0,257.14,257.05,23.776884]
[1732334772263,11.77869857,257.17,257.06,0.58334962]
[1732334772560,11.77869857,257.19,257.07,23.776884]
[1732334772742,11.77869857,257.19,257.08,0.58322612]
[1732334772937,11.77869857,257.19,257.09,29.981684]
[1732334773543,11.77869857,257.17,257.09,6.2048]
[1732334773747,11.77869857,257.17,257.04,23.776884]
[1732334774247,11.77869857,257.13,257.02,23.776884]
[1732334774446,11.77869857,257.11,257.01,6.2048]
[1732334775038,11.77869857,257.09,257.01,6.2048]
[1732334775544,8.55556347,257.22,257.01,6.2048]
[1732334775545,11.77869857,257.11,257.01,6.2048]
[1732334775962,20.0,257.12,257.01,6.2048]
[1732334776267,11.77869857,257.11,257.01,6.2048]
[1732334776763,20.0,257.12,257.01,6.2048]
[1732334776947,20.0,257.12,257.02,0.58345693]
[1732334777548,20.0,257.14,257.02,0.58345693]
[1732334777855,20.0,257.14,257.03,23.776884]
[1732334778755,11.77869857,257.15,257.03,23.776884]
[1732334779267,11.77869857,257.13,257.01,6.2048]
[1732334779463,11.77869857,257.13,257.02,43.776884]
[1732334779647,11.77869857,257.15,257.02,43.776884]
[1732334781463,11.77869857,257.17,257.05,20.0]
[1732334781666,11.77869857,257.17,257.06,23.776884]
[1732334781964,11.77869857,257.19,257.07,20.58329072]
[1732334782259,11.77869857,257.19,257.08,23.776884]
[1732334783167,21.4622,257.26,257.08,23.776884]
[1732334783370,11.77869857,257.22,257.09,37.21726977]
[1732334783665,11.77869857,257.24,257.11,20.0]
[1732334783842,11.77869857,257.24,257.11,20.58316219]
[1732334785162,11.77869857,257.21,257.1,6.0791]
[1732334785378,20.0,257.16,257.1,6.0791]
[1732334785544,11.77869857,257.15,257.1,6.0791]
[1732334785744,11.77869857,257.17,257.1,6.0791]
[1732334786151,11.77869857,257.21,257.1,6.0791]
[1732334786968,11.77869857,257.21,257.11,24.36008871]
[1732334787155,11.77869857,257.24,257.12,20.0]
[1732334787741,11.77869857,257.24,257.11,24.36008871]
[1732334788651,11.77869857,257.24,257.11,23.776884]
[1732334790061,11.77869857,257.22,257.1,6.0791]
[1732334790375,11.77869857,257.2,257.1,6.0791]
[1732334790682,11.77869857,257.27,257.1,6.0791]
[1732334790683,11.77869857,257.18,257.1,6.0791]
[1732334792150,11.77869857,257.18,257.11,23.776884]
[1732334792856,11.77869857,257.27,257.11,23.776884]
[1732334792857,11.77869857,257.2,257.11,23.776884]
[1732334793055,11.77869857,257.22,257.11,23.776884]
[1732334793263,22.45316347,257.32,257.13,23.776884]
[1732334793471,11.77869857,257.27,257.15,23.776884]
[1732334794055,11.77869857,257.25,257.15,23.776884]
[1732334794469,11.77869857,257.26,257.15,23.776884]
[1732334795667,11.77869857,257.23,257.15,23.776884]
[1732334797752,11.77869857,257.21,257.1,6.0791]
[1732334797968,11.77869857,257.27,257.11,23.776884]
[1732334797969,11.77869857,257.19,257.11,23.776884]
[1732334798169,11.77869857,257.17,257.1,6.0791]
[1732334799277,11.77869857,257.17,257.11,23.776884]
[1732334799581,11.77869857,257.21,257.11,23.776884]
[1732334801188,16.38847322,257.35,257.13,23.776884]
[1732334801371,11.77869857,257.26,257.13,23.776884]
[1732334801759,11.77869857,257.26,257.11,23.776884]
[1732334802574,11.77869857,257.28,257.13,43.776884]
[1732334802782,11.77869857,257.3,257.15,23.776884]
[1732334804371,11.77869857,257.28,257.15,23.776884]
[1732334806083,11.77869857,257.26,257.15,23.776884]
[1732334806263,11.77869857,257.26,257.13,23.776884]
[1732334810894,11.77869857,257.28,257.15,23.776884]
[1732334812461,11.77869857,257.28,257.14,23.776884]
[1732334812685,11.77869857,257.26,257.14,23.776884]
[1732334812886,11.77869857,257.24,257.12,15.1147]
[1732334813771,11.77869857,257.22,257.12,15.1147]
[1732334814078,11.77869857,257.18,257.06,15.1147]
[1732334816094,11.77869857,257.1,257.0,15.9353]
[1732334817173,11.77869857,257.1,256.98,6.4668]
[1732334819371,11.77869857,257.12,256.99,0.58351913]
[1732334819590,20.0,257.13,256.99,0.58351913]
[1732334820591,11.77869857,257.12,256.99,0.58351913]
[1732334821682,20.0,257.11,257.0,23.776884]
[1732334822086,11.77869857,257.12,257.0,23.776884]
[1732334823481,11.77869857,257.14,257.0,23.776884]
[1732334823682,20.0,257.15,257.01,0.5834655]
[1732334825483,11.77869857,257.16,257.01,0.5834655]
[1732334825798,20.0,257.15,257.01,0.5834655]
[1732334827102,6.4286,257.26,257.03,20.0]
[1732334827286,11.77869857,257.22,257.05,6.4668]
[1732334827490,6.4286,257.26,257.06,20.58324651]
[1732334827692,11.77869857,257.23,257.06,20.58324651]
[1732334828791,15.3364,257.28,257.06,20.58324651]
[1732334828792,11.77869857,257.27,257.08,20.0]
[1732334829013,11.77869857,257.27,257.09,0.58314448]
[1732334829909,14.18780074,257.32,257.09,0.58314448]
[1732334829910,11.77869857,257.29,257.1,20.0]
[1732334830212,11.77869857,257.31,257.14,15.9353]
[1732334831143,11.77869857,257.29,257.14,15.9353]
[1732334833834,20.0,257.3,257.14,15.9353]
[1732334834038,11.77869857,257.29,257.14,15.9353]
[1732334834536,11.77869857,257.29,257.15,0.58306068]
[1732334834841,11.77869857,257.29,257.14,15.9353]
[1732334835037,11.77869857,257.29,257.15,23.776884]
[1732334838147,11.77869857,257.31,257.15,23.776884]
[1732334838334,20.0,257.3,257.15,23.776884]